[Event "Warsaw Chess Open-B 2022"]
[Site "Warsaw"]
[Date "2022.07.23"]
[Round "7.1"]
[White "Kowalczyk, Adam"]
[Black "Masalski, Pawel"]
[Result "1/2-1/2"]
[ECO "B52"]
[WhiteElo "1944"]
[BlackElo "1550"]
[Annotator "TA"]
[PlyCount "95"]
[EventDate "2022.07.18"]
[EventType "swiss"]
[EventCountry "POL"]
[SourceTitle "playchess.com"]
[Source "ChessBase"]
[SourceQuality "1"]
[TimeControl "40/5400+30:1800+30"]

{[%evp 20,95,5,9,89,16,12,16,17,18,27,16,36,41,51,34,52,53,50,17,37,8,8,8,16,16,14,12,33,0,0,0,0,0,0,0,0,0,0,-4,-4,-4,-4,-4,-4,-4,-4,-4,-4,-4,-4,-4,-4,-4,-4,-4,-4,-4,-4,-16,-16,-16,-16,-16,-16,-16,-16,-16,-16,-16,-16,-16,0,0,0,0,0,0]} 1. e4 {[%emt 0:00:04]} c5 {[%emt 0:00:03]} 2. Nf3 {[%emt 0:00:03]} d6 {[%emt 0:00:14]} 3. Bb5+ {[%emt 0:00:05]} Bd7 {[%emt 0:00:10]} 4. Bxd7+ {[%emt 0:00:06]} Qxd7 {[%emt 0:00:07]} 5. c4 {[%emt 0:00:03]} Nf6 {[%emt 0:00:09]} 6. Nc3 {[%emt 0:00:07]} Nc6 {[%emt 0:00:19]} 7. d4 {[%emt 0:00:18]} cxd4 {[%emt 0:00:06]} 8. Nxd4 {[%emt 0:00:04]} Qg4 {[%emt 0:01:33]} 9. O-O {[%emt 0:12:50]} Qxd1 {[%emt 0:00:15]} 10. Rxd1 {[%emt 0:00:04][%cal Bf1d1,Bd1d4,Bd4d5][%mdl 32]} Nxd4 {[%emt 0:00:08]} 11. Rxd4 {[%emt 0:00:05]} g6 {[%emt 0:00:05] [#] B52: Sicilian: Moscow Variation with 3...Bd7.} (11... Rc8 $11) 12. Nd5 $146 {[%emt 0:01:06] White is more active.} ({Better is} 12. Nb5 $1 $16 {[%cal Rb5c7]}) ({Predecessor:} 12. Nb5 Rc8 13. Nxa7 Rc5 14. b4 Rc7 15. Nb5 Rc6 16. Bd2 Bg7 17. Rc1 e5 18. Rd3 Nxe4 19. Be3 {1-0 (27) Bok,B (2587)-Aharon,O (2361) Riga 2014}) 12... Nxd5 $11 {[%emt 0:00:36]} 13. Rxd5 {[%emt 0:17:24]} Bg7 {[%emt 0:00:52]} 14. Rb1 {[%emt 0:04:07]} Rc8 {[%emt 0:02:01]} 15. b3 {[%emt 0:00:12]} O-O {[%emt 0:05:08]} 16. Be3 {[%emt 0:04:11]} b6 {[%emt 0:01:31]} 17. a4 {[%emt 0:00:25]} f5 {[%emt 0:00:35]} 18. exf5 {[%emt 0:02:05]} Rxf5 19. Rbd1 {[%emt 0:10:56]} Kf7 {[%emt 0:01:34]} 20. g4 {[%emt 0:06:16]} Rxd5 {[%emt 0:00:54]} 21. Rxd5 {[%emt 0:00:04][%mdl 4096] Endgame KRB-KRB} Bc3 {[%emt 0:00:49]} 22. Kg2 {[%emt 0:08:15]} Ke6 {[%emt 0:01:00]} 23. Rd3 {[%emt 0:04:29]} Bb4 {[%emt 0:00:39]} 24. Bd4 {[%emt 0:00:11]} (24. Bg5 $5 {[%cal Rd3e3]} Bc5 25. f4 $14) 24... Rf8 {[%emt 0:00:56] The position is equal.} 25. Re3+ {[%emt 0:02:14]} Kd7 {[%emt 0:00:05]} 26. Rf3 {[%emt 0:00:13] Prevents Rf4.} Rxf3 {[%emt 0:01:07]} 27. Kxf3 {[%emt 0:00:01] KB-KB} e5 {[%emt 0:04:47]} 28. Be3 {[%emt 0:00:31]} Kc6 {[%emt 0:07:20]} 29. Bc1 {[%emt 0:02:15]} d5 {[%emt 0:07:59]} 30. cxd5+ {[%emt 0:00:04]} Kxd5 {[%emt 0:00:09]} 31. Bb2 {[%emt 0:00:06]} Bd2 {[%emt 0:04:49]} 32. Ke2 {[%emt 0:00:41]} Bf4 {[%emt 0:00:25]} 33. h3 {[%emt 0:00:05]} Bh6 {[%emt 0:12:26]} 34. f3 {[%emt 0:01:16]} e4 {[%emt 0:01:54]} 35. Bc3 {[%emt 0:03:56]} a6 {[%emt 0:02:52]} 36. Kf2 {[%emt 0:00:56]} Bf4 {[%emt 0:00:57]} 37. Bb2 {[%emt 0:02:36]} b5 {[%emt 0:00:54]} 38. axb5 {[%emt 0:00:25]} axb5 {[%emt 0:00:06]} 39. fxe4+ {[%emt 0:05:45]} Kxe4 {[%emt 0:00:11]} 40. Ke2 {[%emt 0:00:02]} Be3 {[%emt 0:04:48]} 41. Ba3 {[%emt 0:30:17]} Bd4 {[%emt 0:31:49] And now ...Kf4 would win.} 42. Bc1 {[%emt 0:00:49]} Ba1 {[%emt 0:04:59]} 43. Bg5 {[%emt 0:01:08]} Bb2 {[%emt 0:00:38]} 44. Bh6 {[%emt 0:00:22]} Bf6 {[%emt 0:01:55]} 45. Be3 {[%emt 0:04:22]} g5 {[%emt 0:03:43]} 46. Bc1 {[%emt 0:00:26]} h6 {[%emt 0:00:18]} 47. Be3 {[%emt 0:02:48]} Bb2 {[%emt 0:01:00]} 48. Bc5 {[%emt 0:02:11] Weighted Error Value: White=0.08 (flawless) /Black=0.08 (flawless)} 1/2-1/2

[Event "Warsaw Chess Open-B 2022"]
[Site "Warsaw"]
[Date "2022.07.23"]
[Round "7.2"]
[White "Trybowska, Barbara"]
[Black "Kaczmarska, Joanna"]
[Result "1/2-1/2"]
[ECO "A40"]
[WhiteElo "1828"]
[BlackElo "1965"]
[Annotator "TA"]
[PlyCount "52"]
[EventDate "2022.07.18"]
[EventType "swiss"]
[EventCountry "POL"]
[SourceTitle "playchess.com"]
[Source "ChessBase"]
[SourceQuality "1"]
[TimeControl "40/5400+30:1800+30"]

{[%evp 12,52,3,0,38,35,54,49,62,47,57,66,82,68,72,38,87,35,41,37,30,29,25,22,27,27,31,0,47,49,83,79,83,77,77,64,64,55,64,66,91,72,66]} 1. d4 {[%emt 0:00:01]} Nf6 {[%emt 0:00:13]} 2. c4 {[%emt 0:00:05]} e6 {[%emt 0:02:17]} 3. g3 {[%emt 0:00:26]} Bb4+ {[%emt 0:00:43]} 4. Bd2 {[%emt 0:00:11]} Be7 {[%emt 0:00:21]} 5. Nf3 {[%emt 0:00:41]} d5 {[%emt 0:03:57]} 6. Bg2 {[%emt 0:00:18]} O-O {[%emt 0:00:40]} 7. O-O {[%emt 0:00:59]} c5 {[%emt 0:07:01] E11: Bogo-Indian.} 8. cxd5 {[%emt 0:01:16]} (8. dxc5 {feels hotter.} Bxc5 9. Qc2 Nc6 10. cxd5 Qxd5 11. Rc1) 8... Nxd5 {[%emt 0:01:37]} 9. dxc5 {[%emt 0:06:38]} Bxc5 {[%emt 0:03:04] White is slightly better.} 10. Nc3 {[%emt 0:04:34]} Nxc3 {[%emt 0:01:14]} 11. Bxc3 {[%emt 0:00:27] [#]} Qe7 $146 {[%emt 0:00:30]} ({Predecessor:} 11... Nc6 12. Qxd8 Rxd8 13. Rfd1 f6 14. Rxd8+ Nxd8 15. Rd1 Be7 16. Nd4 Kf8 17. Nb5 Nc6 18. Nd6 Bxd6 19. Rxd6 Ke7 {½-½ (19) Shainswit,G-Pinkus,A Ventnor 1944}) 12. Qc2 {[%emt 0:03:51]} Nc6 {[%emt 0:01:23]} 13. Rac1 {[%emt 0:02:52][%cal Oc3g7]} Bb6 {[%emt 0:04:54]} (13... e5 $14) 14. a3 {[%emt 0:04:34]} ({White should play} 14. Ne5 $16) 14... e5 {[%emt 0:03:08]} 15. Nd2 (15. Rfd1 {is interesting.} f5 16. b4 e4 17. Nd4) 15... Nd4 {[%emt 0:05:42]} 16. Bxd4 {[%emt 0:05:08]} Bxd4 {[%emt 0:03:09]} 17. e3 {[%emt 0:02:03]} Bb6 {[%emt 0:00:36]} 18. Nc4 {[%emt 0:00:22]} Bc7 {[%emt 0:02:57]} 19. Nd2 {[%emt 0:19:33]} Bd8 {[%emt 0:08:07]} (19... Bb6 $1 $11 {deserves consideration.}) 20. Qc5 $36 {[%emt 0:01:38][%mdl 2048] White fights for an advantage.} f6 {[%emt 0:25:42]} 21. Qxe7 {[%emt 0:02:10] White is more active.} Bxe7 {[%emt 0:00:05]} 22. Rc7 {[%emt 0:00:20][%csl LRb7,LRe7]} Bd6 {[%emt 0:02:17]} 23. Bxb7 {[%emt 0:01:45]} Bxc7 {[%emt 0:00:13]} 24. Bxa8 {[%emt 0:00:06]} Be6 {[%emt 0:00:12] Prevents Bd5.} 25. Bf3 {[%emt 0:01:51]} f5 {[%emt 0:03:41]} 26. Rc1 {[%emt 0:00:33]} Bb6 {[%emt 0:00:14] Weighted Error Value: White=0.09 (flawless) /Black=0.14 (very precise)} 1/2-1/2

[Event "Warsaw Chess Open-B 2022"]
[Site "Warsaw"]
[Date "2022.07.23"]
[Round "7.3"]
[White "Kaminski, Jan"]
[Black "Pawicka, Magdalena"]
[Result "1-0"]
[ECO "B40"]
[WhiteElo "1870"]
[BlackElo "1781"]
[Annotator "NA RC COMBH"]
[PlyCount "75"]
[EventDate "2022.07.18"]
[EventType "swiss"]
[EventCountry "POL"]
[SourceTitle "playchess.com"]
[Source "ChessBase"]
[SourceQuality "1"]
[TimeControl "40/5400+30:1800+30"]

1. e4 {[%emt 0:00:01]} c5 {[%emt 0:02:20]} 2. Nf3 {[%emt 0:00:02]} e6 {[%emt 0:00:19]} 3. b3 {[%emt 0:00:03]} b6 {[%emt 0:00:17]} 4. Bb2 {[%emt 0:00:06]} Bb7 {[%emt 0:00:05]} 5. Nc3 {[%emt 0:00:04]} Nc6 {[%emt 0:00:24]} 6. Bc4 {[%emt 0:05:51]} Nf6 {[%emt 0:03:23]} 7. e5 {[%emt 0:01:12]} Nxe5 {[%emt 0:09:02]} 8. Nxe5 {[%emt 0:01:17]} Bxg2 {[%emt 0:00:34]} 9. Rg1 {[%emt 0:00:07]} Bb7 {[%emt 0:01:10]} 10. Qe2 {[%emt 0:01:20]} a6 {[%emt 0:07:58]} 11. a4 {[%emt 0:01:50]} d5 {[%emt 0:03:01]} 12. Bd3 {[%emt 0:00:48]} g6 {[%emt 0:07:12]} 13. Ng4 {[%emt 0:03:29]} Bg7 {[%emt 0:03:23]} 14. Nxf6+ {[%emt 0:01:15]} Qxf6 {[%emt 0:05:40]} 15. O-O-O {[%emt 0:01:00]} O-O {[%emt 0:01:57]} 16. Rde1 e5 {[%emt 0:04:23]} 17. f3 {[%emt 0:03:05]} Rfe8 {[%emt 0:04:20]} 18. Qg2 {[%emt 0:02:23]} Rad8 {[%emt 0:09:02]} 19. Be2 {[%emt 0:04:44]} Bh6 {[%emt 0:06:13]} 20. Rd1 {[%emt 0:03:15]} Bf4 {[%emt 0:03:34]} 21. Kb1 {[%emt 0:01:15]} Qh4 {[%emt 0:03:11]} 22. h3 {[%emt 0:03:29]} f5 {[%emt 0:01:36]} 23. Qf1 {[%emt 0:02:55]} Ra8 {[%emt 0:03:36]} 24. Bd3 {[%emt 0:03:25]} Rf8 {[%emt 0:03:23]} 25. Ne2 {[%emt 0:01:12]} d4 {[%emt 0:09:32]} 26. Nxf4 {[%emt 0:02:41]} Qxf4 {[%emt 0:00:04]} 27. Be2 {[%emt 0:01:04]} e4 {[%emt 0:02:04]} 28. Bc4+ {[%emt 0:01:39]} Kg7 {[%emt 0:00:39]} 29. fxe4 {[%emt 0:00:22]} fxe4 {[%emt 0:00:27]} 30. Qg2 {[%emt 0:02:53]} Qf3 {[%emt 0:01:16]} 31. Qg5 {[%emt 0:00:55]} Qf6 {[%emt 0:00:11]} 32. Qg3 {[%emt 0:10:17]} Qf4 {[%emt 0:00:29]} 33. Qg2 {[%emt 0:00:08]} Qf3 {[%emt 0:00:19]} 34. Qg5 {[%emt 0:00:07]} Qf6 {[%emt 0:00:06]} 35. a5 {[%emt 0:02:32]} b5 {[%emt 0:01:32]} 36. Qxc5 {[%emt 0:05:42]} Rac8 {[%emt 0:00:20]} 37. Qxd4 {[%emt 0:00:41]} bxc4 {[%emt 0:00:29]} 38. Qd7+ {[%emt 0:00:38]} 1-0

[Event "Warsaw Chess Open-B 2022"]
[Site "Warsaw"]
[Date "2022.07.23"]
[Round "7.4"]
[White "Nesterenko, Kyrylo"]
[Black "Posuniak, Weronika"]
[Result "1/2-1/2"]
[ECO "B13"]
[WhiteElo "1782"]
[BlackElo "1895"]
[Annotator "NA RC COMBH"]
[PlyCount "52"]
[EventDate "2022.07.18"]
[EventType "swiss"]
[EventCountry "POL"]
[SourceTitle "playchess.com"]
[Source "ChessBase"]
[SourceQuality "1"]
[TimeControl "40/5400+30:1800+30"]

1. e4 {[%emt 0:00:42]} c6 {[%emt 0:00:10]} 2. d4 {[%emt 0:00:28]} d5 {[%emt 0:00:05]} 3. exd5 {[%emt 0:00:48]} cxd5 {[%emt 0:00:05]} 4. c4 {[%emt 0:00:16]} Nf6 {[%emt 0:00:37]} 5. Nc3 {[%emt 0:00:15]} Nc6 {[%emt 0:00:51]} 6. Bg5 {[%emt 0:02:05]} e6 {[%emt 0:01:27]} 7. Nf3 {[%emt 0:00:11]} Be7 {[%emt 0:00:41]} 8. a3 {[%emt 0:12:41]} O-O {[%emt 0:03:05]} 9. Rc1 {[%emt 0:06:25]} dxc4 {[%emt 0:08:42]} 10. Bxc4 {[%emt 0:01:19]} Nd5 {[%emt 0:03:32]} 11. Bxe7 {[%emt 0:03:23]} Qxe7 {[%emt 0:01:16]} 12. O-O {[%emt 0:04:29]} Nxc3 {[%emt 0:01:54]} 13. Rxc3 {[%emt 0:01:46]} Rd8 14. Qc2 {[%emt 0:09:30]} g6 {[%emt 0:03:41]} 15. Rd1 {[%emt 0:04:12]} Bd7 {[%emt 0:09:12]} 16. h4 Na5 {[%emt 0:11:14]} 17. Be2 {[%emt 0:28:35]} Rac8 {[%emt 0:00:44]} 18. Ne5 {[%emt 0:04:14]} Rxc3 {[%emt 0:04:08]} 19. Qxc3 {[%emt 0:00:27]} Nc6 {[%emt 0:00:26]} 20. h5 {[%emt 0:02:37]} Nxe5 {[%emt 0:01:05]} 21. dxe5 {[%emt 0:00:08]} Bc6 {[%emt 0:00:19]} 22. Rxd8+ {[%emt 0:02:45]} Qxd8 {[%emt 0:00:02]} 23. Qe3 {[%emt 0:04:01]} a6 {[%emt 0:04:50]} 24. Bf3 {[%emt 0:06:02]} Bxf3 {[%emt 0:03:35]} 25. Qxf3 {[%emt 0:00:01]} Qc7 {[%emt 0:00:51]} 26. hxg6 {[%emt 0:02:23]} Qd8 1/2-1/2

[Event "Warsaw Chess Open-B 2022"]
[Site "Warsaw"]
[Date "2022.07.23"]
[Round "7.5"]
[White "Shved, Dmytro"]
[Black "Rzeszowski, Dominik"]
[Result "0-1"]
[ECO "C63"]
[WhiteElo "1579"]
[BlackElo "1856"]
[Annotator "NA RC COMBH"]
[PlyCount "70"]
[EventDate "2022.07.18"]
[EventType "swiss"]
[EventCountry "POL"]
[SourceTitle "playchess.com"]
[Source "ChessBase"]
[SourceQuality "1"]
[TimeControl "40/5400+30:1800+30"]

1. e4 {[%emt 0:03:41]} e5 {[%emt 0:00:06]} 2. Nf3 {[%emt 0:00:05]} Nc6 {[%emt 0:00:04]} 3. Bb5 {[%emt 0:00:07]} f5 {[%emt 0:00:05]} 4. Nc3 {[%emt 0:02:52]} fxe4 {[%emt 0:00:05]} 5. Nxe4 {[%emt 0:00:26]} d5 {[%emt 0:00:04]} 6. Nxe5 {[%emt 0:03:00]} dxe4 {[%emt 0:00:06]} 7. Nxc6 {[%emt 0:07:39]} Qg5 {[%emt 0:00:05]} 8. Qe2 {[%emt 0:05:02]} Nf6 {[%emt 0:00:03]} 9. f4 {[%emt 0:02:30]} Qxf4 {[%emt 0:00:10]} 10. d4 {[%emt 0:02:25]} Qd6 {[%emt 0:00:16]} 11. Nxa7+ {[%emt 0:05:58]} c6 {[%emt 0:01:06]} 12. Nxc8 {[%emt 0:04:55]} Qb4+ {[%emt 0:00:06]} 13. c3 {[%emt 0:03:45]} Qxb5 {[%emt 0:00:16]} 14. Qxb5 {[%emt 0:00:19]} cxb5 {[%emt 0:00:01]} 15. a4 {[%emt 0:00:07]} Rxc8 {[%emt 0:00:07]} 16. axb5 {[%emt 0:00:14]} Bd6 {[%emt 0:07:41]} 17. Ra7 {[%emt 0:07:13]} O-O {[%emt 0:01:40]} 18. Rxb7 {[%emt 0:00:37]} Ng4 {[%emt 0:00:02]} 19. g3 {[%emt 0:02:22]} Nxh2 {[%emt 0:01:58]} 20. Bf4 {[%emt 0:01:07]} Bxf4 {[%emt 0:02:19]} 21. gxf4 {[%emt 0:00:02]} Nf3+ {[%emt 0:00:12]} 22. Ke2 {[%emt 0:00:06]} Rxf4 {[%emt 0:00:36]} 23. Ke3 {[%emt 0:00:15]} Rcf8 {[%emt 0:02:34]} 24. Re7 {[%emt 0:03:14]} Ng5 {[%emt 0:02:13]} 25. d5 {[%emt 0:00:47]} Rf3+ {[%emt 0:04:35]} 26. Kd4 {[%emt 0:00:12]} Rd3+ {[%emt 0:00:42]} 27. Ke5 {[%emt 0:00:27]} Rd2 {[%emt 0:16:26]} 28. c4 {[%emt 0:19:59]} Rf6 {[%emt 0:11:01]} 29. Rc7 {[%emt 0:05:52]} e3 {[%emt 0:04:35]} 30. Rc6 {[%emt 0:03:13]} e2 {[%emt 0:03:35]} 31. Rxf6 {[%emt 0:01:19]} gxf6+ {[%emt 0:00:02]} 32. Kxf6 {[%emt 0:00:11]} Rd1 {[%emt 0:00:40]} 33. b6 {[%emt 0:00:49]} Rxh1 {[%emt 0:00:31]} 34. b7 {[%emt 0:00:07]} Rf1+ {[%emt 0:00:12]} 35. Kxg5 {[%emt 0:00:27]} Rf8 {[%emt 0:00:18]} 0-1

[Event "Warsaw Chess Open-B 2022"]
[Site "Warsaw"]
[Date "2022.07.23"]
[Round "7.6"]
[White "Tyshniuk, Roman"]
[Black "Arciszewska, Zuzanna"]
[Result "0-1"]
[ECO "A05"]
[WhiteElo "1693"]
[BlackElo "1574"]
[Annotator "NA RC COMBH"]
[PlyCount "110"]
[EventDate "2022.07.18"]
[EventType "swiss"]
[EventCountry "POL"]
[SourceTitle "playchess.com"]
[Source "ChessBase"]
[SourceQuality "1"]
[TimeControl "40/5400+30:1800+30"]

1. Nf3 {[%emt 0:00:04]} Nf6 {[%emt 0:00:55]} 2. c4 {[%emt 0:00:02]} e6 {[%emt 0:01:15]} 3. Nc3 {[%emt 0:00:05]} d5 {[%emt 0:00:56]} 4. e3 {[%emt 0:00:18]} Be7 {[%emt 0:01:54]} 5. Be2 {[%emt 0:00:08]} b6 {[%emt 0:01:00]} 6. cxd5 {[%emt 0:01:05]} exd5 {[%emt 0:01:07]} 7. d4 {[%emt 0:00:14]} Bb7 {[%emt 0:00:40]} 8. O-O {[%emt 0:00:41]} O-O {[%emt 0:00:19]} 9. b3 {[%emt 0:00:33]} Nbd7 {[%emt 0:01:14]} 10. Bb2 {[%emt 0:00:13]} a6 {[%emt 0:05:04]} 11. Rc1 {[%emt 0:01:08]} Bd6 {[%emt 0:00:44]} 12. Qc2 {[%emt 0:05:01]} Rc8 {[%emt 0:02:48]} 13. Na4 {[%emt 0:12:02]} Ne4 {[%emt 0:03:50]} 14. Bd3 {[%emt 0:08:39]} Qe7 {[%emt 0:03:59]} 15. Qe2 {[%emt 0:00:47]} b5 {[%emt 0:04:05]} 16. Nc3 {[%emt 0:00:05]} f5 17. Rfd1 {[%emt 0:09:29]} Rf6 {[%emt 0:04:22]} 18. a4 {[%emt 0:10:48]} c6 {[%emt 0:08:50]} 19. axb5 {[%emt 0:00:24]} axb5 {[%emt 0:01:48]} 20. Ra1 {[%emt 0:06:50]} Bb8 {[%emt 0:01:12]} 21. g3 {[%emt 0:03:35]} Rh6 {[%emt 0:03:44]} 22. Qc2 {[%emt 0:08:10]} Ndf6 {[%emt 0:03:28]} 23. Re1 {[%emt 0:11:10]} Ng4 {[%emt 0:04:16]} 24. Nd1 {[%emt 0:00:08]} Qf7 {[%emt 0:07:50]} 25. Bxe4 {[%emt 0:09:11]} fxe4 {[%emt 0:00:21]} 26. Ng5 {[%emt 0:00:22]} Nxh2 {[%emt 0:18:21]} 27. Nxf7 {[%emt 0:00:06]} Nf3+ {[%emt 0:00:05]} 28. Kf1 {[%emt 0:00:05]} Rh1+ {[%emt 0:00:08]} 29. Kg2 {[%emt 0:00:03]} Nxe1+ {[%emt 0:00:58]} 30. Kxh1 {[%emt 0:00:03]} Nxc2 {[%emt 0:00:07]} 31. Rc1 {[%emt 0:00:03]} Kxf7 {[%emt 0:02:38]} 32. Rxc2 {[%emt 0:00:06]} Bd6 {[%emt 0:00:45]} 33. Kg2 {[%emt 0:01:55]} Ke6 {[%emt 0:00:35]} 34. Nc3 {[%emt 0:00:23]} h5 {[%emt 0:00:59]} 35. Rc1 {[%emt 0:00:52]} Rh8 {[%emt 0:01:57]} 36. Rh1 {[%emt 0:01:40]} Bc8 {[%emt 0:01:06]} 37. Ne2 {[%emt 0:00:50]} g5 {[%emt 0:00:19]} 38. f4 {[%emt 0:03:31]} exf3+ {[%emt 0:00:27]} 39. Kxf3 {[%emt 0:00:03]} Kf6 {[%emt 0:00:32]} 40. Nc3 {[%emt 0:01:41]} Bg4+ {[%emt 0:00:50]} 41. Kg2 {[%emt 0:30:07]} Re8 {[%emt 0:32:17]} 42. Bc1 {[%emt 0:02:08]} Kg6 {[%emt 0:01:25]} 43. Nd1 {[%emt 0:02:00]} Rf8 {[%emt 0:00:38]} 44. Re1 {[%emt 0:02:08]} Rf3 {[%emt 0:00:40]} 45. e4 {[%emt 0:00:15]} Rxg3+ {[%emt 0:00:39]} 46. Kf2 {[%emt 0:00:04]} dxe4 {[%emt 0:00:41]} 47. Rxe4 {[%emt 0:00:09]} Rf3+ {[%emt 0:04:22]} 48. Kg2 {[%emt 0:00:12]} Rxb3 {[%emt 0:00:21]} 49. Ne3 {[%emt 0:00:07]} Bd7 {[%emt 0:04:32]} 50. Kf2 {[%emt 0:00:31]} h4 {[%emt 0:00:45]} 51. d5 {[%emt 0:00:16]} cxd5 {[%emt 0:00:37]} 52. Nxd5 {[%emt 0:00:14]} Bg3+ {[%emt 0:00:39]} 53. Ke2 {[%emt 0:01:27]} h3 {[%emt 0:01:12]} 54. Ne7+ {[%emt 0:00:07]} Kf7 {[%emt 0:01:02]} 55. Rd4 {[%emt 0:01:11]} h2 {[%emt 0:00:31]} 0-1

[Event "Warsaw Chess Open-B 2022"]
[Site "Warsaw"]
[Date "2022.07.23"]
[Round "7.7"]
[White "Seklecki, Jakub"]
[Black "Bem, Tymoteusz"]
[Result "1-0"]
[ECO "A18"]
[WhiteElo "1501"]
[BlackElo "1679"]
[Annotator "NA RC COMBH"]
[PlyCount "73"]
[EventDate "2022.07.18"]
[EventType "swiss"]
[EventCountry "POL"]
[SourceTitle "playchess.com"]
[Source "ChessBase"]
[SourceQuality "1"]
[TimeControl "40/5400+30:1800+30"]

1. c4 {[%emt 0:00:06]} Nf6 {[%emt 0:00:21]} 2. Nc3 {[%emt 0:00:06]} e6 {[%emt 0:01:07]} 3. e4 {[%emt 0:00:18]} d5 {[%emt 0:00:26]} 4. e5 {[%emt 0:00:05]} d4 {[%emt 0:00:30]} 5. exf6 {[%emt 0:00:30]} dxc3 6. bxc3 {[%emt 0:00:00]} Qxf6 {[%emt 0:00:00]} 7. Nf3 {[%emt 0:00:10]} e5 {[%emt 0:18:47]} 8. d4 {[%emt 0:06:06]} exd4 {[%emt 0:03:09]} 9. Bg5 {[%emt 0:00:47]} Qe6+ {[%emt 0:06:01]} 10. Be2 {[%emt 0:00:28]} d3 {[%emt 0:02:54]} 11. Qxd3 {[%emt 0:00:28]} Be7 {[%emt 0:01:37]} 12. O-O {[%emt 0:02:46]} O-O {[%emt 0:02:47]} 13. Rfe1 {[%emt 0:10:32]} Bxg5 {[%emt 0:03:16]} 14. Nxg5 {[%emt 0:00:06]} Qh6 15. f4 {[%emt 0:03:43]} Nd7 {[%emt 0:18:24]} 16. Bf3 {[%emt 0:03:51]} Nc5 {[%emt 0:08:52]} 17. Qd2 {[%emt 0:13:58]} Ne6 {[%emt 0:03:35]} 18. Re5 {[%emt 0:08:07]} Qf6 {[%emt 0:07:28]} 19. Nxe6 {[%emt 0:13:46]} Bxe6 {[%emt 0:01:13]} 20. Bd5 {[%emt 0:06:02]} Rad8 {[%emt 0:05:27]} 21. Qe3 {[%emt 0:00:59]} Bxd5 22. cxd5 {[%emt 0:00:11]} Qb6 {[%emt 0:06:13]} 23. c4 {[%emt 0:01:35]} Rfe8 {[%emt 0:01:42]} 24. Qxb6 {[%emt 0:01:31]} axb6 {[%emt 0:00:23]} 25. Rae1 {[%emt 0:00:47]} Kf8 {[%emt 0:00:29]} 26. Rxe8+ {[%emt 0:03:04]} Rxe8 {[%emt 0:00:01]} 27. Rxe8+ {[%emt 0:00:05]} Kxe8 {[%emt 0:00:02]} 28. Kf2 {[%emt 0:00:15]} Ke7 {[%emt 0:00:17]} 29. Ke3 {[%emt 0:00:05]} Kd6 {[%emt 0:02:56]} 30. Kd4 {[%emt 0:00:09]} f5 {[%emt 0:04:26]} 31. a3 h6 32. h4 {[%emt 0:03:59]} g6 {[%emt 0:01:21]} 33. g3 {[%emt 0:01:29]} c5+ {[%emt 0:01:35]} 34. dxc6 {[%emt 0:03:21]} bxc6 {[%emt 0:00:08]} 35. c5+ {[%emt 0:00:15]} Kc7 {[%emt 0:01:34]} 36. Kc4 {[%emt 0:00:23]} bxc5 {[%emt 0:00:51]} 37. a4 {[%emt 0:00:13]} 1-0